bitfinex/quotes_ETHUSD_20241217
["timestamp","ask_amount","ask_price","bid_price","bid_amount"]
[1734428215234,2.02657105,4004.7,4003.7,0.7584]
[1734428215735,2.15295285,4004.6,4003.7,0.7584]
[1734428216039,0.41795239,4004.5,4003.8,0.31067257]
[1734428216200,2.02657105,4004.7,4003.8,0.31067257]
[1734428216383,2.15320797,4004.6,4003.8,0.31067257]
[1734428216587,2.02657105,4004.7,4003.8,0.31067257]
[1734428216788,2.15321129,4004.6,4003.8,0.31067257]
[1734428217013,0.86127849,4004.5,4003.8,0.31067257]
[1734428217215,1.25967105,4004.7,4003.8,0.31067257]
[1734428217400,2.43615848,4004.6,4003.8,0.31067257]
[1734428217605,0.86141722,4004.5,4003.8,0.31067257]
[1734428218438,0.28261543,4004.6,4003.8,0.31067257]
[1734428218925,0.86156923,4004.5,4003.8,0.31067257]
[1734428219336,1.04447051,4004.5,4003.8,0.31067257]
[1734428219540,0.31087698,4004.5,4003.8,0.31067257]
[1734428219835,0.86177298,4004.4,4003.8,0.31067257]
[1734428220039,0.31087698,4004.5,4003.8,0.31067257]
[1734428220040,1.35534749,4004.5,4003.8,0.31067257]
[1734428220340,3.19944487,4004.4,4003.8,0.31067257]
[1734428220632,0.86198974,4004.3,4003.8,0.31067257]
[1734428220784,1.04447051,4004.5,4003.8,0.31067257]
[1734428220785,1.04447051,4004.5,4003.9,0.7747]
[1734428221233,1.2933298,4004.4,4003.9,0.7747]
[1734428221389,2.15530358,4004.3,4003.9,0.7747]
[1734428221733,0.86197378,4004.2,4003.9,0.7747]
[1734428221891,1.04447051,4004.3,4003.9,0.7747]
[1734428222092,1.29321467,4004.2,4003.9,0.7747]
[1734428222322,2.84904542,4004.2,4003.9,0.7747]
[1734428222544,2.15535586,4004.1,4003.9,0.7747]
[1734428223092,1.55583075,4004.2,4003.9,0.7747]
[1734428223407,2.15654523,4004.1,4003.9,0.7747]
[1734428224300,3.20101574,4004.1,4003.9,0.7747]
[1734428224497,0.86261809,4004.0,4003.9,0.7747]
[1734428224815,0.8628144,4004.0,4003.9,0.7747]
[1734428225341,1.04447051,4004.0,4003.9,0.7747]
[1734428225506,1.04447051,4004.0,4003.5,0.29328058]
[1734428225507,2.34817978,4004.0,4003.5,0.7747]
[1734428225706,3.20115765,4003.9,4003.5,0.7747]
[1734428225908,1.56648327,4004.1,4003.5,0.7747]
[1734428225909,0.8628144,4003.8,4003.6,0.55]
[1734428226111,1.04370636,4004.1,4003.7,0.7747]
[1734428226445,0.8630895,4004.0,4003.9,0.7747]
[1734428226943,2.15750417,4004.0,4003.9,0.7747]
[1734428227267,0.8630895,4004.0,4003.9,0.7747]
[1734428227397,1.04370636,4004.3,4004.0,0.7747]
[1734428227841,2.15769856,4004.4,4004.0,1.08537257]
[1734428227842,3.20142527,4004.4,4004.0,1.08537257]
[1734428228009,3.20143652,4004.3,4004.0,1.08537257]
[1734428228197,2.15773016,4004.2,4004.0,1.08537257]
[1734428228402,1.04370636,4004.3,4004.0,1.08537257]
[1734428228800,1.04370636,4004.4,4004.1,0.86067257]
[1734428229037,1.04370636,4004.5,4004.2,0.7747]
[1734428229343,3.89128346,4005.5,4004.3,1.3247]
[1734428229344,1.04370636,4004.6,4004.3,1.3247]
[1734428230443,3.72365877,4004.5,4004.3,0.7747]
[1734428230646,2.73840581,4004.4,4003.9,3.0]
[1734428230952,3.20055613,4004.3,4003.6,0.55]
[1734428231159,2.1571755,4004.2,4003.6,0.55]
[1734428231353,0.8629238,4004.1,4003.6,0.55]
[1734428231678,1.04338063,4004.2,4003.6,0.55]
[1734428231874,1.04338063,4004.2,4003.9,3.0]
[1734428232226,3.19992258,4004.2,4003.6,0.55]
[1734428232527,2.15635273,4004.1,4003.9,3.0]
[1734428232727,1.04338063,4004.2,4003.6,0.55]
[1734428232928,1.29369288,4004.1,4003.9,3.0]
[1734428233171,1.04338063,4004.2,4003.9,3.0]
[1734428233371,3.19959498,4004.1,4003.9,3.0]
[1734428233542,3.19959498,4004.0,4003.6,0.55]
[1734428233870,2.15622117,4003.9,4003.6,3.55]
[1734428234042,1.04338063,4004.0,4003.6,0.55]
[1734428234233,1.29370964,4003.9,4003.6,3.0]
[1734428234429,1.04338063,4004.0,4003.5,0.7747]
[1734428234645,1.29359418,4003.9,4003.5,0.7747]
[1734428234971,0.86236844,4003.8,4003.5,0.7747]
[1734428235272,1.04338063,4004.0,4003.5,0.7747]
[1734428235635,1.90568643,4004.0,4003.6,3.0]
[1734428235850,2.15577063,4003.9,4003.5,0.7747]
[1734428236089,1.04338063,4004.0,4003.5,0.7747]
[1734428236245,0.86214247,4003.9,4003.6,3.0]
[1734428236454,1.04338063,4004.1,4003.5,0.7747]
[1734428236656,1.29312345,4004.0,4003.5,0.7747]
[1734428236860,0.8620823,4003.9,4003.5,0.7747]
[1734428237025,1.04338063,4004.1,4003.5,0.7747]
[1734428237233,1.04338063,4004.1,4003.6,0.31067257]
[1734428237867,0.86200264,4004.0,4003.6,0.31067257]
[1734428238059,1.04338063,4004.1,4003.6,0.31067257]
[1734428238253,3.19775797,4004.0,4003.5,1.06798058]
[1734428238491,0.86175205,4003.9,4003.5,1.06798058]
[1734428238791,1.04338063,4004.0,4003.5,1.06798058]
[1734428238990,1.29260046,4003.9,4003.5,1.06798058]
[1734428239184,0.86173506,4003.8,4003.5,1.06798058]
[1734428239395,1.04338063,4004.0,4003.7,0.7616]
[1734428239692,1.04338063,4004.1,4003.7,0.7616]
[1734428239844,1.29286588,4004.0,4003.7,0.7616]
[1734428240043,1.04338063,4004.1,4003.7,0.7616]
[1734428240379,4.33002719,4004.7,4003.7,0.7616]
[1734428240380,0.86193872,4004.0,4003.7,0.7616]
[1734428240582,1.04338063,4004.2,4003.7,0.7616]
[1734428240746,3.198072,4004.1,4003.7,0.7616]
[1734428240945,2.1547151,4004.0,4003.7,0.7616]
[1734428241172,1.04338063,4004.1,4003.7,0.7616]
[1734428241389,0.86193296,4004.0,4003.7,0.7616]
[1734428241596,1.04338063,4004.1,4003.7,0.7616]
[1734428242091,1.29295392,4004.0,4003.7,0.7616]
[1734428242305,0.86197656,4003.9,4003.7,0.7616]
[1734428242540,3.54537328,4003.9,4003.7,0.7616]
[1734428242744,2.1548086,4003.8,4002.4,1.03732172]
[1734428242879,2.1548086,4003.7,4002.9,0.7616]
[1734428243076,0.86192344,4003.6,4002.9,0.7616]
[1734428243342,1.04338063,4003.8,4003.0,0.31067257]
[1734428243552,1.56648327,4003.9,4002.9,0.7616]
[1734428243553,3.45827059,4003.7,4002.9,0.7616]
[1734428243848,2.15390357,4003.6,4002.9,0.7616]
[1734428244118,1.30436702,4003.7,4002.9,0.7616]
[1734428244119,0.86156143,4003.5,4003.0,0.55]
[1734428244325,1.04338063,4003.7,4003.0,0.55]
[1734428244624,1.2921156,4003.6,4003.0,0.55]
[1734428244838,0.86135302,4003.5,4003.0,0.55]
[1734428244990,1.04338063,4003.7,4003.0,0.55]
[1734428245196,1.2920416,4003.6,4003.0,0.55]
[1734428245399,1.04338063,4003.7,4003.0,0.55]
[1734428245688,1.2918949,4003.6,4003.0,0.55]
[1734428245888,1.04338063,4003.7,4003.0,0.55]
[1734428246206,1.291883,4003.6,4003.0,0.55]
[1734428246366,1.04338063,4003.7,4003.0,0.55]
[1734428246864,1.29183942,4003.6,4003.0,0.55]
[1734428247065,1.04338063,4003.7,4003.0,0.55]
[1734428248109,1.04338063,4003.7,4002.9,0.55]
[1734428248314,1.90460006,4003.8,4003.1,0.55]
[1734428248530,2.15245133,4003.7,4003.1,0.86067257]
[1734428248728,1.04338063,4004.0,4003.3,0.55]
[1734428249061,1.04338063,4003.9,4003.4,0.7616]
[1734428249558,1.29152863,4003.8,4003.4,0.7616]
[1734428250322,0.86101909,4003.7,4003.4,0.7616]
[1734428250562,1.04338063,4003.9,4003.4,0.7616]
[1734428250747,1.29192039,4003.8,4003.4,0.7616]
[1734428251066,0.86128026,4003.7,4003.4,0.7616]
[1734428251218,0.86128026,4003.6,4003.4,0.7616]
[1734428251423,1.51968709,4003.8,4003.4,0.7616]
[1734428251624,2.153586,4003.7,4003.4,0.7616]
[1734428252137,1.04338063,4003.8,4003.4,0.7616]
[1734428253259,1.29272493,4003.7,4003.4,0.7616]
[1734428253461,1.04338063,4003.8,4003.4,0.7616]
[1734428253783,1.29273331,4003.7,4003.4,0.7616]
[1734428253987,0.8618222,4003.6,4003.4,0.7616]
[1734428254284,1.04338063,4003.7,4003.4,0.7616]
[1734428254637,3.19864245,4003.7,4003.4,0.7616]
[1734428254840,0.86210963,4003.6,4003.4,0.7616]
[1734428255139,0.8624566,4003.5,4003.4,0.7616]
[1734428255345,2.15622626,4003.6,4003.4,1.3116]
[1734428255672,1.04338063,4003.7,4003.4,1.3116]
[1734428255673,0.86251386,4003.5,4003.4,1.3116]
[1734428255845,1.04338063,4003.7,4003.4,1.3116]
[1734428256195,2.15627532,4003.6,4003.4,1.3116]
[1734428256483,1.29376558,4003.6,4003.4,1.3116]
[1734428256683,0.86261951,4003.5,4003.4,1.3116]
[1734428256890,0.86263542,4003.6,4003.4,1.3116]
[1734428257187,0.86263542,4003.5,4003.4,1.3116]
[1734428257339,1.04338063,4003.6,4003.4,1.3116]
[1734428257340,1.90601605,4003.6,4003.4,1.3116]
[1734428257539,0.86263542,4003.5,4003.4,1.3116]
[1734428257765,0.86263542,4003.6,4003.4,1.3116]
[1734428257967,1.04338063,4003.7,4003.4,1.3116]
[1734428258167,0.86282209,4003.6,4003.4,1.3116]
[1734428258689,0.86282209,4003.6,4003.4,1.62227257]
[1734428258854,1.04338063,4003.8,4003.5,0.55]
[1734428259061,0.86300259,4003.7,4003.5,0.55]
[1734428259272,0.86300259,4003.6,4003.5,0.86067257]
[1734428259605,0.86315969,4003.6,4003.5,0.86067257]
[1734428259746,1.04338063,4003.8,4003.5,0.86067257]
[1734428260098,0.8631753,4003.7,4003.5,0.86067257]
[1734428260384,0.8631753,4003.6,4003.5,0.86067257]
[1734428260593,2.15765931,4003.6,4003.5,0.86067257]
[1734428260740,0.86306372,4003.6,4003.5,0.86067257]
[1734428260940,0.86306372,4003.6,4003.5,0.55]
[1734428261142,3.20102371,4003.6,4003.5,0.55]
[1734428261544,1.90644435,4003.6,4003.5,0.55]
[1734428261748,3.20102371,4003.6,4003.5,0.55]
[1734428262496,1.90644435,4003.6,4003.5,0.55]
[1734428262701,3.20102371,4003.6,4003.5,0.55]
[1734428262905,1.90644435,4003.6,4003.5,0.55]
[1734428263049,3.20102371,4003.6,4003.5,0.55]
[1734428263252,1.90644435,4003.6,4003.5,0.55]
[1734428263548,3.20102371,4003.6,4003.5,0.55]
[1734428263766,1.90644435,4003.6,4003.5,0.55]
[1734428264112,3.20102371,4003.6,4003.5,0.55]
[1734428264406,1.90644435,4003.6,4003.5,0.55]
[1734428264551,3.20102371,4003.6,4003.5,0.55]
[1734428264878,1.90644435,4003.6,4003.5,0.55]
[1734428265112,3.20102371,4003.6,4003.5,0.55]
[1734428265289,3.20223494,4003.6,4003.5,0.55]
[1734428265921,1.90692235,4003.6,4003.5,0.55]
[1734428266077,3.20223494,4003.6,4003.5,0.55]
[1734428266278,1.90690878,4003.6,4003.5,0.55]
[1734428266577,3.202201,4003.6,4003.5,0.55]
[1734428267375,1.90690878,4003.6,4003.5,0.55]
[1734428267622,3.202201,4003.6,4003.5,0.55]
[1734428267822,2.15882037,4003.6,4003.5,0.55]
[1734428268530,2.15882037,4003.6,4003.2,0.55]
[1734428268732,3.20288614,4003.5,4003.2,0.55]
[1734428269031,0.86352815,4003.4,4003.2,0.55]
[1734428269327,1.04406577,4003.5,4003.2,0.55]
[1734428269496,0.86318566,4003.4,4003.2,0.55]
[1734428270039,1.04406577,4003.5,4003.2,0.55]
[1734428270245,0.86319938,4003.4,4003.2,0.55]
[1734428270586,0.86319938,4003.3,4003.2,0.55]
[1734428270804,1.04406577,4003.5,4003.2,0.55]
[1734428271004,2.15821708,4003.4,4003.2,0.55]
[1734428271205,0.86329519,4003.3,4003.2,0.55]
[1734428271478,1.04406577,4003.5,4003.2,0.55]
[1734428271704,2.1582033,4003.4,4003.2,0.55]
[1734428271904,1.04406577,4003.6,4003.4,0.55]
[1734428272117,0.86329535,4003.5,4003.4,1.3755]
[1734428272275,0.55262278,4003.5,4003.4,1.3755]
[1734428272480,2.33911608,4003.6,4003.4,1.3755]
[1734428272681,1.29505031,4003.5,4003.4,1.3755]
[1734428273496,2.33911608,4003.5,4003.4,0.55]
[1734428273690,2.33911608,4003.5,4003.3,0.55]
[1734428273691,1.04406577,4003.5,4003.3,0.55]
[1734428273891,2.33911608,4003.5,4003.3,0.55]
[1734428274105,1.29505031,4003.4,4003.2,0.29327472]
[1734428274313,1.04406577,4003.4,4003.1,0.8255]
[1734428274711,2.33915169,4003.4,4003.1,0.8255]
[1734428274918,1.29508592,4003.3,4003.1,0.8255]
[1734428275094,1.04406577,4003.4,4003.1,0.8255]
[1734428275531,2.33906501,4003.3,4003.1,0.8255]
[1734428275683,1.04406577,4003.3,4003.1,0.8255]
[1734428275884,2.33932175,4003.4,4003.1,0.8255]
[1734428276084,1.29526624,4003.3,4003.1,0.8255]
[1734428276401,1.29559415,4003.2,4003.1,1.3755]
[1734428276608,1.04406577,4003.3,4003.1,1.3755]
[1734428277186,1.29560103,4003.2,4003.1,1.3755]
[1734428279096,2.3396668,4003.2,4003.1,1.3755]
[1734428279630,2.33994237,4003.2,4003.1,1.3755]
[1734428279933,1.2958766,4003.2,4003.1,1.3755]
[1734428281728,2.33994237,4003.2,4003.1,1.3755]
[1734428282645,1.29588404,4003.2,4003.1,2.09110791]
[1734428283058,1.04406577,4003.3,4003.2,3.55]
[1734428283349,1.29589198,4003.3,4003.2,0.55]
[1734428283553,2.33995775,4003.3,4003.2,0.55]
[1734428283702,1.29589198,4003.3,4003.2,0.55]
[1734428287624,2.33995775,4003.3,4003.2,0.55]
[1734428288443,1.29589198,4003.3,4003.2,0.55]
[1734428288641,1.29589198,4003.3,4003.2,1.02390719]
[1734428288842,1.04406577,4003.4,4003.2,1.02390719]
[1734428289453,1.04406577,4003.7,4003.4,0.55]
[1734428289779,1.04406577,4004.0,4003.8,0.55]
[1734428289978,1.04406577,4004.1,4003.9,0.98778]
[1734428290134,2.34056445,4004.0,4003.9,0.98778]
[1734428290478,1.04406577,4004.1,4003.8,0.55]
[1734428290932,1.29572028,4004.0,4003.8,0.55]
[1734428291297,1.04406577,4004.1,4003.8,0.55]
[1734428291432,2.33968705,4004.0,4003.8,0.55]
[1734428291634,1.04406577,4004.0,4003.8,0.55]
[1734428291834,1.04406577,4004.1,4003.9,0.13778]
[1734428292060,1.04406577,4004.1,4003.9,0.68778]
[1734428292061,1.29542522,4004.0,4003.9,0.68778]
[1734428292262,0.86359851,4004.0,4003.9,0.68778]
[1734428293487,1.04406577,4004.2,4004.1,0.8278]
[1734428293789,2.15804768,4004.2,4004.1,1.3778]
[1734428294568,0.86321907,4004.2,4004.1,1.3778]
[1734428294791,0.86321907,4004.2,4004.1,1.529358]
[1734428295737,0.86277173,4004.3,4004.2,0.55]
[1734428296076,2.15692755,4004.3,4004.2,0.55]
[1734428296392,2.15682167,4004.3,4003.7,1.06588319]
[1734428296579,1.04406577,4004.0,4003.8,0.55]
[1734428296734,2.15682167,4003.9,4003.8,0.55]
[1734428297475,0.86272867,4003.9,4003.8,0.55]
[1734428298484,0.86272867,4003.9,4003.7,3.0]
[1734428298652,1.05340811,4003.8,4003.1,0.7811]
[1734428298834,1.04406577,4003.6,4003.1,0.7811]
[1734428299032,3.20082122,4003.5,4003.1,0.7811]
[1734428299373,0.86272867,4003.4,4003.1,0.7811]
[1734428299578,1.04406577,4003.6,4003.1,0.7811]
[1734428299780,3.20060687,4003.5,4003.1,0.7811]
[1734428299984,0.86261644,4003.4,4003.1,0.7811]
[1734428300280,1.04406577,4003.5,4003.2,0.55]
[1734428300479,0.86258202,4003.4,4003.2,0.55]
[1734428300664,1.56648327,4003.7,4003.2,0.55]
[1734428300665,1.04406577,4003.5,4003.2,0.55]
[1734428300868,0.86258716,4003.4,4003.2,0.55]
[1734428302395,1.04406577,4003.6,4003.2,0.55]
[1734428302564,2.15619818,4003.5,4003.2,0.55]
[1734428302760,0.86247927,4003.4,4003.2,0.55]
[1734428302972,1.04406577,4003.6,4003.2,0.55]
[1734428303280,2.15630215,4003.5,4003.2,0.55]
[1734428303487,0.86252086,4003.4,4003.2,0.55]
[1734428303686,1.04406577,4003.6,4003.2,0.55]
[1734428303860,2.15625137,4003.5,4003.2,0.55]
[1734428304047,0.86250055,4003.4,4003.2,0.55]
[1734428304381,1.04406577,4003.6,4003.2,0.55]
[1734428304561,2.15631728,4003.5,4003.2,0.55]
[1734428304746,0.86252691,4003.4,4003.2,0.55]
[1734428304951,1.04406577,4003.6,4003.2,0.55]
[1734428305173,2.15640133,4003.5,4003.2,0.55]
[1734428305402,1.04406577,4003.6,4003.2,0.68311]
[1734428305592,0.86252217,4003.5,4003.2,1.22437964]
[1734428305776,1.04406577,4003.7,4003.2,1.22437964]
[1734428305977,2.15641235,4003.6,4003.2,1.22437964]
[1734428306204,1.04406577,4003.7,4003.2,1.22437964]
[1734428306410,0.7874,4004.2,4003.4,0.55]
[1734428306411,0.86256917,4003.6,4003.4,0.55]
[1734428306602,1.04406577,4003.9,4003.6,0.55]
[1734428306816,2.15649783,4003.8,4003.6,0.55]
[1734428306989,1.04406577,4003.9,4003.6,0.55]
[1734428306990,0.86259913,4003.7,4003.6,0.55]
[1734428307377,0.86258852,4003.7,4003.6,0.55]
[1734428307778,0.86258852,4003.8,4003.6,0.55]
[1734428307993,0.86258852,4003.7,4003.6,0.55]
[1734428309480,2.15619583,4003.7,4003.6,0.55]
[1734428309686,2.15619583,4003.7,4003.1,0.7811]
[1734428309886,0.86258852,4003.6,4003.3,3.0]
[1734428310285,1.04406577,4003.8,4003.1,0.7811]
[1734428310448,2.15540496,4003.7,4003.1,0.7811]
[1734428311336,2.15540496,4003.7,4003.2,0.55]
[1734428312913,2.15540496,4003.7,4003.4,0.55]
[1734428313298,2.15540496,4003.7,4003.2,0.55]
[1734428315051,1.04406577,4003.8,4003.2,0.55]
[1734428315346,2.15548607,4003.7,4003.2,0.55]
[1734428316802,0.86219443,4003.6,4003.2,0.55]
[1734428317101,1.04406577,4003.7,4003.2,0.55]
[1734428317496,0.86227761,4003.6,4003.2,0.55]
[1734428317697,1.04406577,4003.8,4003.2,0.55]
[1734428317910,0.86216206,4003.7,4003.2,0.55]
[1734428319606,0.86204758,4003.6,4003.2,0.55]
[1734428319801,1.04406577,4003.8,4003.2,0.68311]
[1734428320146,2.15512666,4003.7,4003.4,0.55]
[1734428320298,2.15512666,4003.6,4003.0,0.7811]
[1734428320494,0.86208917,4003.5,4003.1,0.55]
[1734428320700,1.04406577,4003.7,4003.1,0.55]
[1734428320943,3.19910634,4003.6,4003.1,0.55]
[1734428321102,0.86201623,4003.5,4003.3,3.0]
[1734428321302,0.86201623,4003.5,4003.4,0.55]
[1734428321642,0.86201623,4003.5,4003.1,0.55]
[1734428322257,0.86201623,4003.5,4003.1,0.68311]
[1734428323533,0.86201623,4003.4,4003.1,0.68311]
[1734428323837,1.04406577,4003.5,4003.1,0.55]
[1734428324064,2.15495865,4003.4,4003.1,0.55]
[1734428324266,1.04406577,4003.5,4003.1,0.55]
[1734428324448,2.1549949,4003.4,4003.1,0.55]
[1734428324652,1.04406577,4003.5,4003.1,0.55]
[1734428324970,2.15505836,4003.4,4003.1,0.55]
[1734428325172,0.86202334,4003.3,4003.1,0.55]
[1734428325376,1.04406577,4003.6,4003.4,0.55]
[1734428325693,2.15531986,4003.5,4003.4,0.55]
[1734428325895,2.15531986,4003.5,4003.2,0.54126964]
[1734428325896,3.19938563,4003.5,4003.3,0.55]
[1734428326174,0.86212794,4003.4,4003.3,3.55]
[1734428326472,0.86238359,4003.4,4003.3,3.55]
[1734428326685,0.86238359,4003.4,4003.3,0.55]
[1734428326836,0.86238359,4003.4,4003.2,0.55]
[1734428327037,1.04406577,4003.5,4003.2,0.55]
[1734428327275,2.15614877,4003.4,4003.1,0.55]
[1734428327874,0.86245423,4003.3,4003.1,0.55]
[1734428328170,1.04406577,4003.5,4003.1,0.55]
[1734428328371,2.15620423,4003.4,4003.1,0.55]
[1734428328575,0.86248169,4003.3,4003.1,0.55]
[1734428328775,1.04406577,4003.4,4003.3,3.0]
[1734428328934,1.04406577,4003.4,4003.3,0.55]
[1734428329132,1.90654954,4003.4,4003.3,0.55]
[1734428329377,2.15620943,4003.4,4003.3,3.0]
[1734428329736,2.15620943,4003.4,4003.3,0.55]
[1734428329933,2.15620943,4003.4,4003.0,0.7811]
[1734428330184,0.86248377,4003.3,4003.1,0.55]
[1734428330360,1.04406577,4003.5,4003.1,0.55]
[1734428330552,2.1562045,4003.4,4003.1,0.55]
[1734428330751,0.8624818,4003.3,4003.1,0.55]
[1734428330969,1.04406577,4003.5,4003.1,0.55]
[1734428331144,1.04406577,4003.5,4003.3,0.55]
[1734428331145,2.15604268,4003.4,4003.3,0.55]
[1734428331570,2.15604268,4003.4,4003.1,0.55]
[1734428331780,0.86241707,4003.3,4003.1,0.55]
[1734428331994,1.04406577,4003.5,4003.1,0.55]
[1734428332285,2.15596855,4003.4,4003.1,0.55]
[1734428332578,0.86238742,4003.3,4003.1,0.55]
[1734428332877,1.04406577,4003.5,4003.4,0.55]
[1734428333091,3.19999535,4003.5,4003.4,0.55]
[1734428333238,2.15592958,4003.5,4003.1,0.55]
[1734428333442,3.1988591,4003.4,4003.1,0.55]
[1734428333663,0.86232496,4003.3,4003.1,0.55]
[1734428333869,1.04292952,4003.5,4003.4,0.55]
[1734428334101,3.19875529,4003.5,4003.4,0.55]
[1734428334240,3.42394963,4003.5,4002.7,1.16098187]
[1734428334441,1.04283567,4003.2,4002.7,0.12398137]
[1734428334699,0.86233031,4003.1,4002.4,0.7703]
[1734428334868,1.04283567,4003.2,4002.4,0.7703]
[1734428335055,2.15561325,4003.1,4002.4,0.7703]
[1734428335243,1.04283567,4003.2,4002.4,0.7703]
[1734428335445,1.04283567,4003.2,4002.6,0.55]
[1734428335643,1.90509132,4003.2,4002.6,1.0107261]
[1734428335839,0.86217979,4003.1,4002.8,0.55]
[1734428336077,1.04283567,4003.2,4002.8,0.55]
[1734428336252,0.86217495,4003.1,4002.8,0.55]
[1734428336591,1.04283567,4003.3,4002.8,0.55]
[1734428336757,2.1555879,4003.2,4002.8,0.55]
[1734428336965,0.86223516,4003.1,4002.8,0.55]
[1734428337143,1.04283567,4003.2,4002.8,0.55]
[1734428337348,0.86222657,4003.1,4002.8,0.55]
[1734428337596,1.04283567,4003.2,4002.8,3.55]
[1734428337892,0.86223601,4003.1,4002.8,3.55]
[1734428338251,0.86223601,4003.1,4002.8,0.55]
[1734428339084,0.86223601,4003.1,4002.8,3.55]
[1734428339286,0.86223601,4003.1,4002.8,0.55]
[1734428339492,0.86223601,4003.1,4002.8,3.55]
[1734428339862,0.86223601,4003.1,4002.8,0.55]
[1734428340190,0.86223601,4003.1,4002.8,3.55]
[1734428340554,0.86223601,4003.0,4002.8,0.55]
[1734428340778,1.04283567,4003.2,4002.8,3.55]
[1734428341087,2.15616598,4003.1,4002.8,0.55]
[1734428341288,0.86246639,4003.0,4002.8,3.55]
[1734428341494,0.7916,4003.5,4002.8,0.96373285]
[1734428341495,1.04283567,4003.1,4002.8,0.96373285]
[1734428341648,0.86265168,4003.0,4002.8,0.55]
[1734428341860,0.86265168,4003.0,4002.8,3.55]
[1734428342312,1.04283567,4003.2,4002.8,0.55]
[1734428342460,0.86265658,4003.1,4002.9,0.823]
[1734428342667,1.04283567,4003.3,4003.0,0.55]
[1734428342899,0.86269938,4003.2,4003.0,0.55]
[1734428343222,1.04283567,4003.3,4003.0,0.71475691]
[1734428343365,0.86271966,4003.2,4003.0,0.71475691]
[1734428343565,2.08864436,4003.7,4003.3,0.55]
[1734428343566,1.04283567,4003.7,4003.3,0.55]
[1734428343786,0.86284113,4003.6,4003.3,0.55]
[1734428344136,1.04283567,4003.7,4003.3,0.55]
[1734428344310,0.86284789,4003.6,4003.3,0.75790266]
[1734428344613,0.862894,4003.5,4003.3,3.75790266]
[1734428344827,1.04283567,4003.7,4003.3,0.75790266]
[1734428345033,2.15725467,4003.6,4003.3,0.75790266]
[1734428345190,0.86290187,4003.5,4003.3,0.55]
[1734428345541,0.8628894,4003.4,4003.1,0.55]
[1734428345839,1.04283567,4003.6,4003.1,0.55]
[1734428345993,2.15703021,4003.5,4003.1,0.55]
[1734428346174,0.86282584,4003.4,4003.1,0.55]
[1734428346375,2.15702109,4003.3,4003.0,0.55]
[1734428346638,1.04283567,4003.4,4003.0,0.6873]
[1734428346827,2.15701437,4003.3,4003.0,0.6873]
[1734428347111,0.86281539,4003.2,4003.0,0.6873]
[1734428347315,1.04283567,4003.4,4003.0,0.6873]
[1734428347608,2.15706796,4003.3,4003.0,0.6873]
[1734428347836,0.86282718,4003.2,4003.0,0.6873]
[1734428348022,1.04283567,4003.4,4003.0,0.6873]
[1734428348234,2.15703215,4003.3,4003.0,0.6873]
[1734428348402,1.04283567,4003.4,4003.0,0.6873]
[1734428348737,2.15702557,4003.3,4003.0,0.55]
[1734428348888,0.86281023,4003.2,4003.0,0.55]
[1734428349091,1.04283567,4003.4,4003.0,0.55]
[1734428349292,2.15704271,4003.3,4003.0,0.55]
[1734428349543,0.86281708,4003.2,4003.0,0.55]
[1734428349828,1.04283567,4003.4,4003.0,0.55]
[1734428350038,2.15694876,4003.3,4003.0,0.55]
[1734428350191,2.1569499,4003.2,4002.7,0.55]
[1734428350391,0.8627795,4003.1,4002.7,0.55]
[1734428350645,1.04283567,4003.2,4002.7,0.55]
[1734428350948,0.86275322,4003.1,4002.7,0.55]
[1734428351092,1.04283567,4003.2,4002.7,0.55]
[1734428351292,0.86273436,4003.1,4002.7,0.55]
[1734428351632,1.04283567,4003.2,4002.7,0.55]
[1734428351868,0.86270864,4003.1,4002.7,0.55]
[1734428352034,1.04283567,4003.2,4002.7,0.55]
[1734428352241,2.15669471,4003.1,4002.7,0.82456914]
[1734428352414,0.86267788,4003.0,4002.7,1.26868679]
[1734428352611,1.04283567,4003.2,4002.9,0.55]
[1734428352824,1.04283567,4003.3,4003.1,0.55]
[1734428353046,0.86250669,4003.2,4003.1,0.55]
[1734428353537,1.04283567,4003.4,4003.1,0.55]
[1734428353739,1.56648327,4003.6,4003.1,0.55]
[1734428353740,0.86251929,4003.3,4003.1,0.55]
[1734428353965,1.04283567,4003.4,4003.3,3.0]
[1734428354168,1.90534824,4003.4,4003.3,3.55]
[1734428354303,3.1991171,4003.4,4003.3,3.55]
[1734428354507,1.90534824,4003.4,4003.3,0.55]
[1734428354729,3.1991171,4003.4,4003.3,0.55]
[1734428355004,3.1991171,4003.4,4003.3,3.55]
[1734428355206,1.90534824,4003.4,4003.3,0.55]
[1734428355409,3.1991171,4003.4,4003.1,0.55]
[1734428355635,1.04283567,4003.4,4003.3,3.55]
[1734428355829,1.90537942,4003.4,4003.3,0.55]
[1734428356181,1.90537942,4003.4,4003.3,3.55]
[1734428356182,3.19919504,4003.4,4003.3,3.55]
[1734428356384,3.19919504,4003.4,4003.1,0.55]
[1734428356695,2.15635937,4003.3,4003.1,0.55]
[1734428356883,1.04283567,4003.4,4003.1,0.55]
[1734428357183,2.15607875,4003.3,4003.1,0.55]
[1734428357360,1.04283567,4003.4,4003.3,3.55]
[1734428357691,3.19902148,4003.4,4003.3,3.55]
[1734428357824,3.19902148,4003.4,4003.3,0.55]
[1734428358030,3.19902148,4003.4,4003.3,3.0]
[1734428358249,3.19902148,4003.4,4003.3,3.55]
[1734428358497,3.19902148,4003.4,4003.3,0.55]
[1734428358657,3.19902148,4003.4,4003.3,3.55]
[1734428359048,3.19902148,4003.4,4003.3,0.55]
[1734428359506,3.19902148,4003.4,4003.3,3.55]
[1734428359718,3.19902148,4003.4,4003.3,0.55]
[1734428360367,3.199046,4003.4,4003.3,3.55]
[1734428360701,3.199046,4003.4,4003.3,0.55]
[1734428360903,3.199046,4003.4,4003.3,3.55]
[1734428361104,3.199046,4003.4,4003.3,3.0]
[1734428361409,3.199046,4003.4,4003.3,3.55]
[1734428361571,3.199046,4003.4,4003.3,0.55]
[1734428361947,3.199046,4003.4,4003.3,3.0]